[Event "Late-Titled-Tuesday-Blitz-January-30-2024"]
[Site "Chess.com"]
[Date "2024.01.30"]
[Round "6"]
[White "Mahan_83"]
[Black "toninhojit"]
[Result "0-1"]
[WhiteElo "2746"]
[BlackElo "2520"]
[TimeControl "180+1"]
[EndTime "15:09:42 PST"]
[Termination "toninhojit won on time"]

1. e4 {[%clk 0:03:00.9]} 1... e5 {[%clk 0:03:00.1]} 2. Nf3 {[%clk 0:03:00.7]}
2... Nc6 {[%clk 0:03:00.5]} 3. Nc3 {[%clk 0:03:01.1]} 3... Nf6 {[%clk
0:03:00.7]} 4. d4 {[%clk 0:03:01.7]} 4... exd4 {[%clk 0:03:01]} 5. Nd5 {[%clk
0:03:01.7]} 5... Be7 {[%clk 0:02:58]} 6. Nxd4 {[%clk 0:03:01.6]} 6... O-O {[%clk
0:02:57.1]} 7. Be2 {[%clk 0:02:59.1]} 7... Nxd5 {[%clk 0:02:53.4]} 8. exd5
{[%clk 0:02:58.9]} 8... Nxd4 {[%clk 0:02:53.8]} 9. Qxd4 {[%clk 0:02:59.8]} 9...
Bf6 {[%clk 0:02:54.1]} 10. Qd3 {[%clk 0:02:57.4]} 10... d6 {[%clk 0:02:45.7]}
11. O-O {[%clk 0:02:57.1]} 11... Re8 {[%clk 0:02:46.3]} 12. Bf3 {[%clk
0:02:52.1]} 12... g6 {[%clk 0:02:45.2]} 13. Qb3 {[%clk 0:02:51.6]} 13... b6
{[%clk 0:02:44.7]} 14. Be3 {[%clk 0:02:50.5]} 14... Bf5 {[%clk 0:02:43.5]} 15.
Rfe1 {[%clk 0:02:50]} 15... Qd7 {[%clk 0:02:40.8]} 16. c3 {[%clk 0:02:48.3]}
16... a5 {[%clk 0:02:39.4]} 17. a4 {[%clk 0:02:47.3]} 17... Be4 {[%clk
0:02:30.1]} 18. Bxe4 {[%clk 0:02:40.1]} 18... Rxe4 {[%clk 0:02:31]} 19. f3
{[%clk 0:02:38.1]} 19... Re7 {[%clk 0:02:26]} 20. Bf2 {[%clk 0:02:38.2]} 20...
Rae8 {[%clk 0:02:26.1]} 21. Rxe7 {[%clk 0:02:36.2]} 21... Rxe7 {[%clk 0:02:27]}
22. Re1 {[%clk 0:02:36.6]} 22... Rxe1+ {[%clk 0:02:26.4]} 23. Bxe1 {[%clk
0:02:37.5]} 23... Qe8 {[%clk 0:02:26.8]} 24. Kf1 {[%clk 0:02:31.5]} 24... Qe5
{[%clk 0:02:22]} 25. Bg3 {[%clk 0:02:14.7]} 25... Qe3 {[%clk 0:02:21.4]} 26. Qc2
{[%clk 0:02:12.7]} 26... Be5 {[%clk 0:01:52.2]} 27. Bf2 {[%clk 0:01:58.5]} 27...
Qf4 {[%clk 0:01:52.1]} 28. h3 {[%clk 0:01:51.6]} 28... Qc4+ {[%clk 0:01:50.7]}
29. Kg1 {[%clk 0:01:49.4]} 29... Qxd5 {[%clk 0:01:50.2]} 30. Qe2 {[%clk
0:01:46.9]} 30... Kg7 {[%clk 0:01:46]} 31. g3 {[%clk 0:01:46.3]} 31... Bf6
{[%clk 0:01:35.6]} 32. f4 {[%clk 0:01:42.4]} 32... Qb3 {[%clk 0:01:33.1]} 33.
Qb5 {[%clk 0:01:38.4]} 33... Qxb5 {[%clk 0:01:29.8]} 34. axb5 {[%clk 0:01:39.3]}
34... Kf8 {[%clk 0:01:16.1]} 35. Kg2 {[%clk 0:01:34.3]} 35... Ke8 {[%clk
0:01:16.2]} 36. Kf3 {[%clk 0:01:34.7]} 36... Kd8 {[%clk 0:01:12.8]} 37. Ke4
{[%clk 0:01:34.8]} 37... Kd7 {[%clk 0:01:12.8]} 38. Kd5 {[%clk 0:01:35]} 38...
h5 {[%clk 0:01:06.4]} 39. Be1 {[%clk 0:01:33.1]} 39... Bg7 {[%clk 0:01:02]} 40.
b3 {[%clk 0:01:31.8]} 40... Bh6 {[%clk 0:00:55.5]} 41. c4 {[%clk 0:01:25.9]}
41... h4 {[%clk 0:00:51.5]} 42. Bf2 {[%clk 0:01:23.5]} 42... hxg3 {[%clk
0:00:50.5]} 43. Bxg3 {[%clk 0:01:24.4]} 43... Bg7 {[%clk 0:00:39.6]} 44. f5
{[%clk 0:01:18.4]} 44... Bf6 {[%clk 0:00:25.7]} 45. fxg6 {[%clk 0:01:12.5]}
45... fxg6 {[%clk 0:00:26.6]} 46. Bf4 {[%clk 0:01:11.7]} 46... Be7 {[%clk
0:00:24.3]} 47. Be3 {[%clk 0:01:09.1]} 47... Bf6 {[%clk 0:00:23.3]} 48. Bf2
{[%clk 0:01:05]} 48... Be7 {[%clk 0:00:23.7]} 49. Bd4 {[%clk 0:01:04.4]} 49...
Bg5 {[%clk 0:00:22.9]} 50. Bf2 {[%clk 0:01:00.5]} 50... Bf6 {[%clk 0:00:22.2]}
51. Bg3 {[%clk 0:01:00.5]} 51... Be7 {[%clk 0:00:20.4]} 52. Be1 {[%clk
0:00:54.9]} 52... Bf6 {[%clk 0:00:20.4]} 53. h4 {[%clk 0:00:54.9]} 53... Be7
{[%clk 0:00:20]} 54. Bg3 {[%clk 0:00:49]} 54... Bf6 {[%clk 0:00:20.1]} 55. Bf2
{[%clk 0:00:47]} 55... Be7 {[%clk 0:00:20.5]} 56. Be1 {[%clk 0:00:31.7]} 56...
Bd8 {[%clk 0:00:20.1]} 57. Bg3 {[%clk 0:00:29.5]} 57... Bf6 {[%clk 0:00:20.2]}
58. Bf2 {[%clk 0:00:27.6]} 58... Be7 {[%clk 0:00:19.9]} 59. Ke4 {[%clk
0:00:23.6]} 59... Ke6 {[%clk 0:00:19.7]} 60. Bg3 {[%clk 0:00:24]} 60... Bf6
{[%clk 0:00:19.5]} 61. Be1 {[%clk 0:00:23.9]} 61... Be7 {[%clk 0:00:19.3]} 62.
Bf2 {[%clk 0:00:23.7]} 62... Bf6 {[%clk 0:00:19.6]} 63. Bg3 {[%clk 0:00:22.7]}
63... Bd8 {[%clk 0:00:18.8]} 64. Be1 {[%clk 0:00:20.5]} 64... Be7 {[%clk
0:00:19.3]} 65. Bf2 {[%clk 0:00:20.3]} 65... Bf6 {[%clk 0:00:14.3]} 66. Be1
{[%clk 0:00:16.6]} 66... Kd7 {[%clk 0:00:14.4]} 67. Bg3 {[%clk 0:00:15.7]} 67...
c6 {[%clk 0:00:12.1]} 68. Bf2 {[%clk 0:00:07.6]} 68... cxb5 {[%clk 0:00:10.3]}
69. cxb5 {[%clk 0:00:08.5]} 69... Kc7 {[%clk 0:00:09.2]} 70. Kd5 {[%clk
0:00:08.2]} 70... Be5 {[%clk 0:00:09.8]} 71. Ke6 {[%clk 0:00:07]} 71... Bf4
{[%clk 0:00:04.8]} 72. Kf7 {[%clk 0:00:06.2]} 72... d5 {[%clk 0:00:05.3]} 73.
Kxg6 {[%clk 0:00:06.4]} 73... Be5 {[%clk 0:00:05.9]} 74. h5 {[%clk 0:00:05.7]}
74... d4 {[%clk 0:00:06.5]} 75. h6 {[%clk 0:00:06.1]} 75... d3 {[%clk
0:00:07.2]} 76. Be3 {[%clk 0:00:06.3]} 76... Bd4 {[%clk 0:00:07.7]} 77. Bd2
{[%clk 0:00:03.5]} 77... Kd6 {[%clk 0:00:06.8]} 78. h7 {[%clk 0:00:03.7]} 78...
Kc5 {[%clk 0:00:07.4]} 79. Bg5 {[%clk 0:00:03.1]} 79... Kxb5 {[%clk 0:00:05.6]}
80. Kf5 {[%clk 0:00:03.5]} 80... Kb4 {[%clk 0:00:05.3]} 81. Ke4 {[%clk
0:00:04.4]} 81... Bh8 {[%clk 0:00:05.4]} 82. Kxd3 {[%clk 0:00:04.7]} 82... Kxb3
{[%clk 0:00:06.1]} 83. Bd8 {[%clk 0:00:04.3]} 83... a4 {[%clk 0:00:05.3]} 84.
Bxb6 {[%clk 0:00:04]} 84... a3 {[%clk 0:00:06]} 85. Bd4 {[%clk 0:00:03]} 85...
Bxd4 {[%clk 0:00:05.6]} 86. h8=Q {[%clk 0:00:02.8]} 86... Bxh8 {[%clk 0:00:05]}
0-1

[Event "Late-Titled-Tuesday-Blitz-January-30-2024"]
[Site "Chess.com"]
[Date "2024.01.30"]
[Round "6"]
[White "WPWPWP-2015"]
[Black "maurovargas01"]
[Result "0-1"]
[WhiteElo "2465"]
[BlackElo "1886"]
[TimeControl "180+1"]
[EndTime "15:10:04 PST"]
[Termination "maurovargas01 won by checkmate"]

1. d4 {[%clk 0:03:00.9]} 1... d5 {[%clk 0:02:59.1]} 2. c4 {[%clk 0:03:00.4]}
2... e6 {[%clk 0:02:59]} 3. Nf3 {[%clk 0:03:00.3]} 3... c6 {[%clk 0:02:59]} 4.
Nc3 {[%clk 0:02:40.1]} 4... dxc4 {[%clk 0:02:58.2]} 5. e4 {[%clk 0:02:39.8]}
5... b5 {[%clk 0:02:58.1]} 6. a4 {[%clk 0:02:36.7]} 6... Bb4 {[%clk 0:02:57.5]}
7. Bd2 {[%clk 0:02:33.5]} 7... Bxc3 {[%clk 0:02:56.8]} 8. Bxc3 {[%clk
0:02:32.3]} 8... Bb7 {[%clk 0:02:50.1]} 9. Be2 {[%clk 0:02:26.4]} 9... Nf6
{[%clk 0:02:49.7]} 10. Qc2 {[%clk 0:02:17.1]} 10... O-O {[%clk 0:02:46.4]} 11.
O-O {[%clk 0:02:16.4]} 11... Nbd7 {[%clk 0:02:45.9]} 12. Rfd1 {[%clk 0:02:12.7]}
12... Qc7 {[%clk 0:02:42.4]} 13. a5 {[%clk 0:02:09.2]} 13... a6 {[%clk
0:02:39.1]} 14. Bb4 {[%clk 0:02:06]} 14... c5 {[%clk 0:02:33.4]} 15. dxc5 {[%clk
0:02:02.3]} 15... Bxe4 {[%clk 0:02:32.6]} 16. Qd2 {[%clk 0:01:56.1]} 16... Nxc5
{[%clk 0:02:29.1]} 17. Qd6 {[%clk 0:01:52.2]} 17... Qxd6 {[%clk 0:02:19.5]} 18.
Rxd6 {[%clk 0:01:53.1]} 18... Nb3 {[%clk 0:02:15.6]} 19. Rad1 {[%clk 0:01:52]}
19... Nd5 {[%clk 0:02:10.5]} 20. Ne5 {[%clk 0:01:14.7]} 20... Rfd8 {[%clk
0:02:07.3]} 21. Rxd8+ {[%clk 0:00:56.6]} 21... Rxd8 {[%clk 0:02:06.5]} 22. Nc6
{[%clk 0:00:54.6]} 22... Ra8 {[%clk 0:01:46.6]} 23. Ne7+ {[%clk 0:00:44.8]}
23... Nxe7 {[%clk 0:01:38.5]} 24. Bxe7 {[%clk 0:00:44.3]} 24... Bd5 {[%clk
0:01:37.5]} 25. Bb4 {[%clk 0:00:42.3]} 25... Rc8 {[%clk 0:01:35.6]} 26. f3
{[%clk 0:00:40.9]} 26... Nc5 {[%clk 0:01:32.9]} 27. Kf2 {[%clk 0:00:40.6]} 27...
Nd7 {[%clk 0:01:31.2]} 28. Ke3 {[%clk 0:00:39.1]} 28... Nf6 {[%clk 0:01:27.8]}
29. Kd4 {[%clk 0:00:31.6]} 29... h6 {[%clk 0:01:27]} 30. g4 {[%clk 0:00:29.7]}
30... Nd7 {[%clk 0:01:25.5]} 31. f4 {[%clk 0:00:28.3]} 31... Nf6 {[%clk
0:01:24.3]} 32. h4 {[%clk 0:00:20.1]} 32... Ne4 {[%clk 0:01:22.2]} 33. g5 {[%clk
0:00:19]} 33... hxg5 {[%clk 0:01:21.1]} 34. hxg5 {[%clk 0:00:18.8]} 34... Nf2
{[%clk 0:01:10.4]} 35. Rf1 {[%clk 0:00:16.2]} 35... Ne4 {[%clk 0:01:10]} 36. Bf3
{[%clk 0:00:15.7]} 36... Ng3 {[%clk 0:01:07.9]} 37. Rf2 {[%clk 0:00:15.8]} 37...
Bxf3 {[%clk 0:01:07.7]} 38. Rxf3 {[%clk 0:00:16.1]} 38... Nf5+ {[%clk 0:01:08]}
39. Ke5 {[%clk 0:00:14.5]} 39... Rd8 {[%clk 0:01:06.8]} 40. b3 {[%clk
0:00:14.5]} 40... Rd5+ {[%clk 0:01:06.3]} 41. Ke4 {[%clk 0:00:14.2]} 41... Rd4+
{[%clk 0:01:04.4]} 42. Ke5 {[%clk 0:00:14.6]} 42... Rd1 {[%clk 0:00:56.6]} 43.
bxc4 {[%clk 0:00:11.7]} 43... bxc4 {[%clk 0:00:55.2]} 44. g6 {[%clk 0:00:07.6]}
44... Rd5+ {[%clk 0:00:49.1]} 45. Ke4 {[%clk 0:00:07.5]} 45... f6 {[%clk
0:00:46]} 46. Bc3 {[%clk 0:00:06.4]} 46... Rd1 {[%clk 0:00:44.6]} 47. Rh3 {[%clk
0:00:05.4]} 47... Rg1 {[%clk 0:00:36.8]} 48. Bd2 {[%clk 0:00:04.8]} 48... Rxg6
{[%clk 0:00:36.3]} 49. Ra3 {[%clk 0:00:04.2]} 49... Rg3 {[%clk 0:00:34.3]} 50.
Rc3 {[%clk 0:00:03.7]} 50... Rxc3 {[%clk 0:00:34.1]} 51. Bxc3 {[%clk 0:00:04]}
51... Kf7 {[%clk 0:00:32.7]} 52. Bb4 {[%clk 0:00:04.5]} 52... Ke8 {[%clk
0:00:32.1]} 53. Ba3 {[%clk 0:00:04.3]} 53... Kd7 {[%clk 0:00:32.1]} 54. Bf8
{[%clk 0:00:03.8]} 54... g6 {[%clk 0:00:29.7]} 55. Bb4 {[%clk 0:00:03.3]} 55...
Kc6 {[%clk 0:00:29.7]} 56. Bc3 {[%clk 0:00:03.7]} 56... Kb5 {[%clk 0:00:29.4]}
57. Be1 {[%clk 0:00:02.6]} 57... Ka4 {[%clk 0:00:27.8]} 58. Bc3 {[%clk
0:00:02.8]} 58... Kb3 {[%clk 0:00:27.9]} 59. Bxf6 {[%clk 0:00:02.9]} 59... c3
{[%clk 0:00:27.2]} 60. Ke5 {[%clk 0:00:02.6]} 60... c2 {[%clk 0:00:24.1]} 61.
Kxe6 {[%clk 0:00:03.1]} 61... c1=Q {[%clk 0:00:22.8]} 62. Be5 {[%clk 0:00:03.6]}
62... Qc8+ {[%clk 0:00:22.1]} 63. Kf6 {[%clk 0:00:03.7]} 63... Qe8 {[%clk
0:00:21.7]} 64. Kg5 {[%clk 0:00:03.6]} 64... Ne3 {[%clk 0:00:20.9]} 65. Kf6
{[%clk 0:00:02.4]} 65... Nd5+ {[%clk 0:00:20.6]} 66. Kg5 {[%clk 0:00:02.6]}
66... Kb4 {[%clk 0:00:17.9]} 67. Kh6 {[%clk 0:00:01.5]} 67... Kxa5 {[%clk
0:00:17.8]} 68. Kg5 {[%clk 0:00:01.7]} 68... Kb4 {[%clk 0:00:17.9]} 69. Kh6
{[%clk 0:00:01.9]} 69... a5 {[%clk 0:00:18.2]} 70. Kg5 {[%clk 0:00:02.4]} 70...
a4 {[%clk 0:00:18.4]} 71. Kh6 {[%clk 0:00:03]} 71... a3 {[%clk 0:00:18.7]} 72.
Kg5 {[%clk 0:00:03.6]} 72... Kb3 {[%clk 0:00:19.1]} 73. Kh6 {[%clk 0:00:04.2]}
73... Nc3 {[%clk 0:00:19.2]} 74. Kg5 {[%clk 0:00:03.7]} 74... a2 {[%clk
0:00:19.3]} 75. Kh6 {[%clk 0:00:04.4]} 75... a1=Q {[%clk 0:00:18.9]} 76. Kg7
{[%clk 0:00:04.9]} 76... Qa7+ {[%clk 0:00:18.5]} 77. Kh6 {[%clk 0:00:04.9]}
77... Qh8+ {[%clk 0:00:18.6]} 78. Bxh8 {[%clk 0:00:04.3]} 78... Qa5 {[%clk
0:00:16.6]} 79. Be5 {[%clk 0:00:03.8]} 79... Qa6 {[%clk 0:00:16]} 80. Kg5 {[%clk
0:00:03.4]} 80... Ne4+ {[%clk 0:00:16]} 81. Kh6 {[%clk 0:00:03.5]} 81... Qa2
{[%clk 0:00:12.2]} 82. Kxg6 {[%clk 0:00:03.3]} 82... Qg2+ {[%clk 0:00:11.8]} 83.
Kf5 {[%clk 0:00:03.6]} 83... Nd2 {[%clk 0:00:11.2]} 84. Kf6 {[%clk 0:00:02.7]}
84... Kc4 {[%clk 0:00:11.4]} 85. Kf5 {[%clk 0:00:02.8]} 85... Qe4+ {[%clk
0:00:09.9]} 86. Kf6 {[%clk 0:00:02.2]} 86... Kd5 {[%clk 0:00:08.6]} 87. Kg5
{[%clk 0:00:02.6]} 87... Nf3+ {[%clk 0:00:08.6]} 88. Kf6 {[%clk 0:00:03]} 88...
Nxe5 {[%clk 0:00:09.3]} 89. f5 {[%clk 0:00:03.3]} 89... Ng4+ {[%clk 0:00:08.5]}
90. Kg6 {[%clk 0:00:03.2]} 90... Ke5 {[%clk 0:00:08.2]} 91. Kh5 {[%clk
0:00:01.9]} 91... Qxf5+ {[%clk 0:00:08.1]} 92. Kh4 {[%clk 0:00:02.3]} 92... Nf6
{[%clk 0:00:06.2]} 93. Kg3 {[%clk 0:00:02.9]} 93... Qg4+ {[%clk 0:00:06.2]} 94.
Kf2 {[%clk 0:00:03.1]} 94... Kf4 {[%clk 0:00:06.2]} 95. Ke1 {[%clk 0:00:03.4]}
95... Qg2 {[%clk 0:00:05.8]} 96. Kd1 {[%clk 0:00:03.6]} 96... Ke3 {[%clk
0:00:06.1]} 97. Kc1 {[%clk 0:00:04.5]} 97... Kd3 {[%clk 0:00:06.4]} 98. Kb1
{[%clk 0:00:05.4]} 98... Kc3 {[%clk 0:00:07.1]} 99. Ka1 {[%clk 0:00:06.3]} 99...
Kb3 {[%clk 0:00:07.7]} 100. Kb1 {[%clk 0:00:06.8]} 100... Qb2# {[%clk 0:00:08]}
0-1

[Event "Late-Titled-Tuesday-Blitz-January-30-2024"]
[Site "Chess.com"]
[Date "2024.01.30"]
[Round "7"]
[White "AsaHoffmann"]
[Black "Pingah9"]
[Result "0-1"]
[WhiteElo "2346"]
[BlackElo "2529"]
[TimeControl "180+1"]
[EndTime "15:13:48 PST"]
[Termination "Pingah9 won by resignation"]

1. d4 {[%clk 0:02:50.8]} 1... g6 {[%clk 0:02:59.2]} 2. e4 {[%clk 0:02:45.4]}
2... Bg7 {[%clk 0:02:58]} 3. Be3 {[%clk 0:02:40.6]} 3... c6 {[%clk 0:02:57.6]}
4. Qd2 {[%clk 0:02:40.1]} 4... d6 {[%clk 0:02:56.8]} 5. Nc3 {[%clk 0:02:39.5]}
5... Nf6 {[%clk 0:02:56]} 6. f3 {[%clk 0:02:39.4]} 6... b5 {[%clk 0:02:55.7]} 7.
a4 {[%clk 0:02:38.6]} 7... b4 {[%clk 0:02:55.6]} 8. Nd1 {[%clk 0:02:38.5]} 8...
a5 {[%clk 0:02:55.3]} 9. c4 {[%clk 0:02:37.6]} 9... h5 {[%clk 0:02:52.7]} 10. h4
{[%clk 0:02:37]} 10... Nbd7 {[%clk 0:02:50.4]} 11. b3 {[%clk 0:02:35.5]} 11...
c5 {[%clk 0:02:49.8]} 12. Ne2 {[%clk 0:02:33]} 12... Bb7 {[%clk 0:02:42.5]} 13.
Nf2 {[%clk 0:02:32.7]} 13... O-O {[%clk 0:02:35]} 14. Bh6 {[%clk 0:02:30.8]}
14... cxd4 {[%clk 0:02:32.8]} 15. Bxg7 {[%clk 0:02:27]} 15... Kxg7 {[%clk
0:02:32]} 16. Nxd4 {[%clk 0:02:26.8]} 16... Nc5 {[%clk 0:02:28.3]} 17. Rb1
{[%clk 0:02:25.7]} 17... Qd7 {[%clk 0:02:20.4]} 18. g4 {[%clk 0:02:25.1]} 18...
hxg4 {[%clk 0:02:17.9]} 19. h5 {[%clk 0:02:14.2]} 19... Rh8 {[%clk 0:02:13]} 20.
h6+ {[%clk 0:02:07.7]} 20... Kh7 {[%clk 0:02:12.3]} 21. Bd3 {[%clk 0:01:59.1]}
21... g3 {[%clk 0:01:59.6]} 22. Nh3 {[%clk 0:01:52.9]} 22... g2 {[%clk
0:01:51.4]} 23. Rg1 {[%clk 0:01:45.3]} 23... Qxh3 {[%clk 0:01:50.5]} 0-1

[Event "Late-Titled-Tuesday-Blitz-January-30-2024"]
[Site "Chess.com"]
[Date "2024.01.30"]
[Round "7"]
[White "carloseduar100"]
[Black "aistrel"]
[Result "0-1"]
[WhiteElo "2323"]
[BlackElo "2538"]
[TimeControl "180+1"]
[EndTime "15:13:57 PST"]
[Termination "aistrel won by checkmate"]

1. e4 {[%clk 0:02:51.5]} 1... c6 {[%clk 0:02:58.3]} 2. Nf3 {[%clk 0:02:51.7]}
2... d5 {[%clk 0:02:59.2]} 3. Nc3 {[%clk 0:02:51.7]} 3... dxe4 {[%clk
0:02:59.1]} 4. Nxe4 {[%clk 0:02:51.7]} 4... Nf6 {[%clk 0:03:00]} 5. Nxf6+ {[%clk
0:02:50.8]} 5... exf6 {[%clk 0:03:00.9]} 6. d4 {[%clk 0:02:51.1]} 6... Bd6
{[%clk 0:03:01.3]} 7. Bd3 {[%clk 0:02:51.4]} 7... Bg4 {[%clk 0:03:01.7]} 8. O-O
{[%clk 0:02:51.6]} 8... O-O {[%clk 0:03:02.1]} 9. c3 {[%clk 0:02:51.9]} 9... Re8
{[%clk 0:02:59]} 10. h3 {[%clk 0:02:52]} 10... Bh5 {[%clk 0:02:58.8]} 11. Be3
{[%clk 0:02:52.1]} 11... Bc7 {[%clk 0:02:56.3]} 12. a4 {[%clk 0:02:47.8]} 12...
Qd6 {[%clk 0:02:56.6]} 13. g3 {[%clk 0:02:40.5]} 13... Rxe3 {[%clk 0:02:55.5]}
14. Be2 {[%clk 0:02:16]} 14... Bxf3 {[%clk 0:02:41.2]} 15. Bxf3 {[%clk 0:02:16]}
15... Re8 {[%clk 0:02:40]} 16. a5 {[%clk 0:02:15.6]} 16... a6 {[%clk 0:02:39.3]}
17. b4 {[%clk 0:02:15.3]} 17... Nd7 {[%clk 0:02:39.7]} 18. Kg2 {[%clk 0:02:11]}
18... Nf8 {[%clk 0:02:40.2]} 19. Qd3 {[%clk 0:02:10.5]} 19... Ne6 {[%clk
0:02:39.8]} 20. h4 {[%clk 0:02:09.1]} 20... Re7 {[%clk 0:02:36.5]} 21. Rad1
{[%clk 0:02:09]} 21... Rae8 {[%clk 0:02:36.6]} 22. Qc4 {[%clk 0:02:04.2]} 22...
Bb8 {[%clk 0:02:18.4]} 23. d5 {[%clk 0:02:04.2]} 23... cxd5 {[%clk 0:02:19.3]}
24. Bxd5 {[%clk 0:02:03.9]} 24... Qc7 {[%clk 0:02:18.9]} 25. Qb3 {[%clk
0:01:54.3]} 25... f5 {[%clk 0:02:18]} 26. c4 {[%clk 0:01:38.3]} 26... f4 {[%clk
0:02:17.2]} 27. g4 {[%clk 0:01:38.6]} 27... f3+ {[%clk 0:02:16.2]} 28. Kxf3
{[%clk 0:01:38.9]} 28... Qf4+ {[%clk 0:02:15]} 29. Kg2 {[%clk 0:01:39.3]} 29...
Qh2+ {[%clk 0:02:13.9]} 30. Kf3 {[%clk 0:01:39.5]} 30... Nd4+ {[%clk 0:02:08.9]}
31. Rxd4 {[%clk 0:01:36.1]} 31... Qh3# {[%clk 0:02:09.8]} 0-1

[Event "Late-Titled-Tuesday-Blitz-January-30-2024"]
[Site "Chess.com"]
[Date "2024.01.30"]
[Round "7"]
[White "Eduard_Limonov"]
[Black "SHIVACalypso"]
[Result "1-0"]
[WhiteElo "2877"]
[BlackElo "2493"]
[TimeControl "180+1"]
[EndTime "15:14:38 PST"]
[Termination "Eduard_Limonov won by resignation"]

1. d4 {[%clk 0:03:00.9]} 1... Nf6 {[%clk 0:02:59.5]} 2. c4 {[%clk 0:03:01.1]}
2... e6 {[%clk 0:02:58.5]} 3. Nc3 {[%clk 0:03:01.2]} 3... Bb4 {[%clk 0:02:59]}
4. e3 {[%clk 0:03:00.2]} 4... O-O {[%clk 0:02:58.2]} 5. Nf3 {[%clk 0:02:56.7]}
5... d5 {[%clk 0:02:58]} 6. cxd5 {[%clk 0:02:46.9]} 6... exd5 {[%clk 0:02:56.4]}
7. Bd2 {[%clk 0:02:47.5]} 7... c6 {[%clk 0:02:56.4]} 8. Bd3 {[%clk 0:02:43.7]}
8... h6 {[%clk 0:02:56]} 9. h3 {[%clk 0:02:43.9]} 9... Be6 {[%clk 0:02:56.3]}
10. O-O {[%clk 0:02:41.2]} 10... Nbd7 {[%clk 0:02:56.2]} 11. Ne2 {[%clk
0:02:23.5]} 11... Bd6 {[%clk 0:02:52.1]} 12. a3 {[%clk 0:02:23.4]} 12... Rc8
{[%clk 0:02:49.9]} 13. Bb4 {[%clk 0:02:23.1]} 13... Qe7 {[%clk 0:02:47.9]} 14.
Bxd6 {[%clk 0:02:21.4]} 14... Qxd6 {[%clk 0:02:48.8]} 15. Nf4 {[%clk 0:02:21.4]}
15... c5 {[%clk 0:02:41.3]} 16. dxc5 {[%clk 0:02:20.6]} 16... Nxc5 {[%clk
0:02:40.8]} 17. Nd4 {[%clk 0:02:18.3]} 17... Nxd3 {[%clk 0:02:38.3]} 18. Qxd3
{[%clk 0:02:18.3]} 18... Rfd8 {[%clk 0:02:38.5]} 19. Rac1 {[%clk 0:02:18]} 19...
Ne4 {[%clk 0:02:35.1]} 20. Rfd1 {[%clk 0:02:13.2]} 20... g5 {[%clk 0:02:20.2]}
21. Rxc8 {[%clk 0:01:58.9]} 21... Bxc8 {[%clk 0:02:10.9]} 22. Nfe2 {[%clk
0:01:54.1]} 22... Qf6 {[%clk 0:02:03.8]} 23. f3 {[%clk 0:01:43]} 23... Nc5
{[%clk 0:02:03]} 24. Qc3 {[%clk 0:01:43.3]} 24... b6 {[%clk 0:02:01.8]} 25. b4
{[%clk 0:01:31.1]} 25... Ne6 {[%clk 0:02:01.4]} 26. Nc6 {[%clk 0:01:29.7]} 26...
Qxc3 {[%clk 0:01:57.9]} 27. Nxc3 {[%clk 0:01:30.6]} 27... Re8 {[%clk 0:01:52.4]}
28. Nxa7 {[%clk 0:01:26]} 28... Bb7 {[%clk 0:01:51.2]} 29. Nxd5 {[%clk
0:01:22.2]} 29... Ra8 {[%clk 0:01:46.4]} 30. Nb5 {[%clk 0:01:20.4]} 30... Bxd5
{[%clk 0:01:45.5]} 31. Rxd5 {[%clk 0:01:21.3]} 31... Rxa3 {[%clk 0:01:45.6]} 32.
Nxa3 {[%clk 0:01:21.1]} 1-0

[Event "Late-Titled-Tuesday-Blitz-January-30-2024"]
[Site "Chess.com"]
[Date "2024.01.30"]
[Round "7"]
[White "EsmeraldasAnderson03"]
[Black "rdarruda"]
[Result "0-1"]
[WhiteElo "2417"]
[BlackElo "2542"]
[TimeControl "180+1"]
[EndTime "15:14:40 PST"]
[Termination "rdarruda won by resignation"]

1. d4 {[%clk 0:02:27.3]} 1... Nf6 {[%clk 0:02:59]} 2. c4 {[%clk 0:02:25.8]} 2...
e5 {[%clk 0:02:58.7]} 3. dxe5 {[%clk 0:02:23.8]} 3... Ne4 {[%clk 0:02:58.6]} 4.
Nf3 {[%clk 0:02:22.6]} 4... Nc6 {[%clk 0:02:58]} 5. e3 {[%clk 0:02:22.6]} 5...
d6 {[%clk 0:02:57.5]} 6. Bd3 {[%clk 0:02:10.7]} 6... Nc5 {[%clk 0:02:56]} 7.
exd6 {[%clk 0:02:10.1]} 7... Qxd6 {[%clk 0:02:56.4]} 8. Be2 {[%clk 0:02:10.2]}
8... Qxd1+ {[%clk 0:02:56.3]} 9. Kxd1 {[%clk 0:02:09.7]} 9... Bf5 {[%clk
0:02:54.7]} 10. Nbd2 {[%clk 0:01:54.7]} 10... O-O-O {[%clk 0:02:54.3]} 11. b3
{[%clk 0:01:54.9]} 11... Ne4 {[%clk 0:02:40.8]} 12. Ke1 {[%clk 0:01:41.1]} 12...
Bb4 {[%clk 0:02:37.5]} 13. a3 {[%clk 0:01:41]} 13... Bc3 {[%clk 0:02:37.5]} 14.
Ra2 {[%clk 0:01:41.6]} 14... Rhe8 {[%clk 0:02:24.7]} 15. Kf1 {[%clk 0:01:39]}
15... Nxd2+ {[%clk 0:02:13.4]} 16. Nxd2 {[%clk 0:01:26.7]} 16... Ne5 {[%clk
0:02:11.7]} 17. g3 {[%clk 0:01:18]} 17... Bh3+ {[%clk 0:01:59.9]} 18. Kg1 {[%clk
0:01:16.5]} 18... Nd3 {[%clk 0:02:00]} 19. Bxd3 {[%clk 0:01:11.9]} 19... Rxd3
{[%clk 0:02:00.9]} 20. f3 {[%clk 0:00:51.7]} 20... Rdxe3 {[%clk 0:01:56.9]} 21.
Rc2 {[%clk 0:00:40.5]} 21... Re1+ {[%clk 0:01:55.4]} 0-1

[Event "Late-Titled-Tuesday-Blitz-January-30-2024"]
[Site "Chess.com"]
[Date "2024.01.30"]
[Round "7"]
[White "maurovargas01"]
[Black "jlf287"]
[Result "0-1"]
[WhiteElo "1886"]
[BlackElo "2526"]
[TimeControl "180+1"]
[EndTime "15:14:43 PST"]
[Termination "jlf287 won by checkmate"]

1. e4 {[%clk 0:02:58.8]} 1... e5 {[%clk 0:03:00]} 2. Nf3 {[%clk 0:02:58.8]} 2...
Nc6 {[%clk 0:03:00.6]} 3. d4 {[%clk 0:02:58.9]} 3... exd4 {[%clk 0:03:00.7]} 4.
Bc4 {[%clk 0:02:59.3]} 4... Nf6 {[%clk 0:03:01.2]} 5. e5 {[%clk 0:02:59.2]} 5...
d5 {[%clk 0:03:00.7]} 6. Bb5 {[%clk 0:02:59.3]} 6... Ne4 {[%clk 0:03:01.4]} 7.
Nxd4 {[%clk 0:02:59.6]} 7... Bd7 {[%clk 0:03:01.9]} 8. Bxc6 {[%clk 0:02:59.9]}
8... bxc6 {[%clk 0:03:02.7]} 9. O-O {[%clk 0:03:00.3]} 9... Bc5 {[%clk
0:03:03.3]} 10. c3 {[%clk 0:03:00.1]} 10... O-O {[%clk 0:02:58.1]} 11. f3 {[%clk
0:02:59.6]} 11... Ng5 {[%clk 0:02:58.3]} 12. Be3 {[%clk 0:02:59.9]} 12... Bb6
{[%clk 0:02:57.5]} 13. Qc1 {[%clk 0:02:59.7]} 13... Ne6 {[%clk 0:02:56.3]} 14.
f4 {[%clk 0:02:59.7]} 14... c5 {[%clk 0:02:51.4]} 15. Nb3 {[%clk 0:02:50]} 15...
f5 {[%clk 0:02:46.5]} 16. exf6 {[%clk 0:02:44.8]} 16... Qxf6 {[%clk 0:02:45.1]}
17. f5 {[%clk 0:02:42.7]} 17... d4 {[%clk 0:02:37.7]} 18. Bg5 {[%clk 0:02:37.8]}
18... Nxg5 {[%clk 0:02:37]} 19. cxd4 {[%clk 0:02:26.6]} 19... cxd4 {[%clk
0:02:36.9]} 20. Qc4+ {[%clk 0:02:24.4]} 20... Kh8 {[%clk 0:02:36.2]} 21. Kh1
{[%clk 0:02:23.5]} 21... Qc6 {[%clk 0:02:25.3]} 22. Qd3 {[%clk 0:02:12.3]} 22...
Qb5 {[%clk 0:02:19.8]} 23. Qd1 {[%clk 0:02:06.6]} 23... Rxf5 {[%clk 0:02:00.2]}
24. Rxf5 {[%clk 0:02:02.7]} 24... Qxf5 {[%clk 0:02:01.1]} 25. N1d2 {[%clk
0:01:56.9]} 25... Re8 {[%clk 0:01:58.2]} 26. Nc4 {[%clk 0:01:56.4]} 26... Bc6
{[%clk 0:01:49.6]} 27. Nxd4 {[%clk 0:01:50.1]} 27... Bxg2+ {[%clk 0:01:38.8]}
28. Kxg2 {[%clk 0:01:47.3]} 28... Qh3+ {[%clk 0:01:35.3]} 29. Kh1 {[%clk
0:01:38.9]} 29... Bxd4 {[%clk 0:01:26.1]} 30. Qxd4 {[%clk 0:01:37.4]} 30... Qf3+
{[%clk 0:01:26]} 31. Kg1 {[%clk 0:01:35.3]} 31... Nh3# {[%clk 0:01:26.9]} 0-1